fUST/lending_fUST_20250520
["ID","MTS","AMOUNT","RATE_DAILY","PERIOD"]
[361750719,1747755057065,-707.0,0.00021324,2]
[361750720,1747755057077,-257.21542943,0.00023133,2]
[361750721,1747755057088,-2500.0,0.00023133,2]
[361750722,1747755057098,-2500.0,0.00023164,2]
[361750723,1747755057108,-507.98450228,0.00023164,2]
[361750724,1747755057119,-2500.0,0.00023164,2]
[361750725,1747755057130,-1032.10867951,0.00023164,2]
[361750726,1747755057143,-424.85338045,0.00023164,2]
[361750727,1747755057153,-1091.47,0.0002319,4]
[361750728,1747755057163,-571.58,0.000232,14]
[361750729,1747755057174,-800.0,0.00023242,2]
[361750730,1747755057184,-668.72353195,0.0002329,2]
[361750731,1747755057197,-422.74646805,0.0002329,2]
[361750732,1747755057208,-151.0,0.000233,10]
[361750733,1747755057218,-153.0,0.00023342,2]
[361750734,1747755057228,-153.0,0.00023342,2]
[361750735,1747755057238,-321.8536889,0.00023342,2]
[361750736,1747755057249,-153.0,0.00023342,2]
[361750737,1747755057261,-351.6717419,0.0002337,2]
[361750738,1747755057273,-160.3698392,0.0002337,2]
[361750739,1747755057283,-151.0,0.0002339,7]
[361750740,1747755057292,-1091.47,0.0002339,2]
[361750741,1747755057302,-6242.69140111,0.00023417,9]
[361750742,1747755057313,-354.42370081,0.00023456,5]
[361750744,1747755566197,-2576.0,0.00015245,2]
[361750745,1747755566219,-428.9424626,0.00015399,2]
[361750746,1747755566240,-1489.3602175,0.00015552,2]
[361750747,1747755566262,-300.0,0.00015688,2]
[361750748,1747755566285,-300.0,0.00015688,2]
[361750749,1747755566309,-11781.6973199,0.00015689,2]
[361750759,1747756040247,-186.28358166,0.00013,2]
[361750761,1747756063764,-154.538006,0.00013,2]
[361750762,1747756066217,-170.63,0.00013,2]
[361750763,1747756070900,-170.63,0.00013,2]
[361750764,1747756072649,-17.9883693,0.00013,2]
[361750808,1747756232639,-3099.51953193,0.00013562,2]
[361750810,1747756232650,-223.047238,0.00013699,2]
[361750812,1747756232660,-311.7804932,0.00015109,2]
[361750814,1747756232670,-160.0,0.00015349,2]
[361750817,1747756232680,-196.337771,0.00015509,2]
[361750819,1747756232689,-300.0,0.00015688,2]
[361750822,1747756232699,-13118.3026801,0.00015689,2]
[361750825,1747756232709,-308.0,0.00016112,2]
[361750828,1747756232719,-255.55807021,0.00016162,2]
[361750831,1747756232729,-168.24526098,0.00016338,2]
[361750834,1747756232738,-160.0,0.00016339,2]
[361750838,1747756232751,-450.0,0.00016438,2]
[361750841,1747756232766,-430.0,0.00016438,2]
[361750843,1747756232776,-450.0,0.00016438,2]
[361750846,1747756232786,-457.16247717,0.00016438,2]
[361750849,1747756232795,-400.0,0.00016438,2]
[361750852,1747756232805,-400.0,0.00016438,2]
[361750855,1747756232814,-430.0,0.00016438,2]
[361750857,1747756232824,-430.0,0.00016438,2]
[361750859,1747756232836,-430.0,0.00016438,2]
[361750862,1747756232845,-217.47,0.00016438,2]
[361750865,1747756232855,-576.92,0.00016438,2]
[361750868,1747756232864,-514.34,0.00016438,2]
[361750870,1747756232873,-482.21,0.00016438,2]
[361750872,1747756232883,-316.36229669,0.00016438,2]
[361750874,1747756232892,-430.0,0.00016438,2]
[361750876,1747756232902,-430.0,0.00016438,2]
[361750878,1747756232911,-430.0,0.00016438,2]
[361750880,1747756232920,-430.0,0.00016438,2]
[361750882,1747756232929,-430.0,0.00016438,2]
[361750884,1747756232939,-430.0,0.00016438,2]
[361750886,1747756232948,-430.0,0.00016438,2]
[361750887,1747756232957,-465.09,0.00016438,2]
[361750888,1747756232967,-430.0,0.00016438,2]
[361750889,1747756232976,-509.8601466,0.00016438,2]
[361750890,1747756232986,-450.0,0.00016438,2]
[361750891,1747756232995,-430.0,0.00016438,2]
[361750892,1747756233006,-430.0,0.00016438,2]
[361750893,1747756233016,-430.0,0.00016438,2]
[361750894,1747756233026,-450.19,0.00016438,2]
[361750895,1747756233035,-544.4,0.00016438,2]
[361750896,1747756233044,-430.0,0.00016438,2]
[361750897,1747756233053,-430.0,0.00016438,2]
[361750898,1747756233063,-430.0,0.00016438,2]
[361750899,1747756233072,-430.0,0.00016438,2]
[361750900,1747756233081,-430.0,0.00016438,2]
[361750901,1747756233090,-6175.5865897,0.00016438,2]
[361750902,1747756233100,-450.0,0.00016438,2]
[361750903,1747756233109,-430.0,0.00016438,2]
[361750904,1747756233119,-430.0,0.00016438,2]
[361750905,1747756233128,-521.49,0.00016438,2]
[361750906,1747756233138,-449.56,0.00016438,2]
[361750907,1747756233148,-430.0,0.00016438,2]
[361750908,1747756233158,-430.0,0.00016438,2]
[361750909,1747756233168,-572.84689829,0.00016438,2]
[361750910,1747756233178,-156.04,0.00016438,2]
[361750911,1747756233200,-400.0,0.00016438,2]
[361750912,1747756233210,-430.0,0.00016438,2]
[361750913,1747756233220,-430.0,0.00016438,2]
[361750914,1747756233229,-430.0,0.00016438,2]
[361750915,1747756233239,-398.1015585,0.00016438,2]
[361750916,1747756233250,-400.0,0.00016438,2]
[361750917,1747756233261,-430.0,0.00016438,2]
[361750918,1747756233271,-430.0,0.00016438,2]
[361750919,1747756233281,-418.29074507,0.00016438,2]
[361750920,1747756233291,-397.8875824,0.00016438,2]
[361750921,1747756233301,-430.0,0.00016438,2]
[361750922,1747756233311,-670.74,0.00016438,2]
[361750923,1747756233321,-1537.74,0.00016438,2]
[361750924,1747756233332,-430.0,0.00016438,2]
[361750925,1747756233342,-450.0,0.00016438,2]
[361750926,1747756233352,-1803.68,0.00016438,2]
[361750927,1747756233362,-430.0,0.00016438,2]
[361750928,1747756233371,-430.0,0.00016438,2]
[361750929,1747756233381,-506.14,0.00016438,2]
[361750930,1747756233390,-430.0,0.00016438,2]
[361750931,1747756233400,-430.0,0.00016438,2]
[361750932,1747756233410,-430.0,0.00016438,2]
[361750933,1747756233419,-1856.81,0.00016438,2]
[361750934,1747756233429,-430.0,0.00016438,2]
[361750935,1747756233439,-430.0,0.00016438,2]
[361750936,1747756233448,-430.0,0.00016438,2]
[361750937,1747756233458,-445.15,0.00016438,2]
[361750938,1747756233468,-430.0,0.00016438,2]
[361750939,1747756233478,-397.62,0.00016438,2]
[361750940,1747756233487,-430.0,0.00016438,2]
[361750941,1747756233497,-430.0,0.00016438,2]
[361750942,1747756233508,-430.0,0.00016438,2]
[361750943,1747756233518,-1161.66,0.00016438,2]
[361750944,1747756233528,-430.0,0.00016438,2]
[361750945,1747756233537,-863.02,0.00016438,2]
[361750946,1747756233547,-505.16711817,0.00016438,2]
[361750947,1747756233557,-500.0,0.00016711,2]
[361750948,1747756233567,-500.0,0.00016711,2]
[361750949,1747756233576,-500.0,0.00016711,2]
[361750950,1747756233586,-500.0,0.00016711,2]
[361750951,1747756233596,-522.09827296,0.00016711,2]
[361750952,1747756233605,-500.0,0.00016711,2]
[361750953,1747756233615,-500.0,0.00016711,2]
[361750954,1747756233625,-613.73998017,0.00016711,2]
[361750955,1747756233635,-500.0,0.00016711,2]
[361750956,1747756233645,-500.0,0.00016711,2]
[361750957,1747756233654,-380.73954925,0.00016711,2]
[361750958,1747756233664,-500.0,0.00016711,2]
[361750959,1747756233674,-433.38800327,0.00016711,2]
[361750960,1747756233684,-500.0,0.00016711,2]
[361750961,1747756233694,-500.0,0.00016711,2]
[361750962,1747756233703,-500.0,0.00016711,2]
[361750963,1747756233713,-500.0,0.00016711,2]
[361750964,1747756233723,-462.54944565,0.00016712,2]
[361750965,1747756233732,-430.0,0.00016712,2]
[361750966,1747756233742,-430.0,0.00016712,2]
[361750967,1747756233753,-219.38,0.00016712,2]
[361750968,1747756233767,-261.98,0.00016712,2]
[361750969,1747756233777,-430.0,0.00016712,2]
[361750970,1747756233787,-274.26,0.00016712,2]
[361750971,1747756233796,-430.0,0.00016712,2]
[361750972,1747756233807,-430.0,0.00016712,2]
[361750973,1747756233816,-430.0,0.00016712,2]
[361750974,1747756233826,-430.0,0.00016712,2]
[361750975,1747756233836,-430.0,0.00016712,2]
[361750976,1747756234053,-430.0,0.00016712,2]
[361750977,1747756234063,-450.0,0.00016712,2]
[361750978,1747756234073,-430.0,0.00016712,2]
[361750979,1747756234083,-670.74,0.00016712,2]
[361750980,1747756234301,-1537.74,0.00016712,2]
[361750981,1747756234311,-1803.68,0.00016712,2]
[361750982,1747756234320,-197.34,0.00016712,2]
[361750983,1747756234331,-430.0,0.00016712,2]
[361750984,1747756234341,-430.0,0.00016712,2]
[361750985,1747756234352,-363.61,0.00016712,2]
[361750986,1747756234362,-430.0,0.00016712,2]
[361750987,1747756234373,-1856.81,0.00016712,2]
[361750988,1747756234383,-430.0,0.00016712,2]
[361750989,1747756234393,-306.69,0.00016712,2]
[361750990,1747756234403,-430.0,0.00016712,2]
[361750991,1747756234413,-430.0,0.00016712,2]
[361750992,1747756234424,-430.0,0.00016712,2]
[361750993,1747756234434,-430.0,0.00016712,2]
[361750994,1747756234444,-430.0,0.00016712,2]
[361750995,1747756234456,-1161.66,0.00016712,2]
[361750996,1747756234466,-430.0,0.00016712,2]
[361750997,1747756234476,-863.02,0.00016712,2]
[361750998,1747756234486,-160.55490754,0.00016886,2]
[361750999,1747756234496,-3058.76730688,0.000169,2]
[361751000,1747756234508,-430.0,0.00016986,2]
[361751001,1747756234518,-430.0,0.00016986,2]
[361751002,1747756234529,-308.87,0.00016986,2]
[361751003,1747756234541,-385.16517377,0.00016986,2]
[361751004,1747756234757,-430.0,0.00016986,2]
[361751005,1747756234768,-430.0,0.00016986,2]
[361751006,1747756234778,-430.0,0.00016986,2]
[361751007,1747756234788,-506.33,0.00016986,2]
[361751008,1747756234798,-430.0,0.00016986,2]
[361751009,1747756234808,-430.0,0.00016986,2]
[361751010,1747756234817,-670.74,0.00016986,2]
[361751011,1747756234826,-1537.74,0.00016986,2]
[361751012,1747756234836,-1803.68,0.00016986,2]
[361751013,1747756234846,-299.01,0.00016986,2]
[361751014,1747756234855,-296.86154559,0.00016986,2]
[361751015,1747756234865,-430.0,0.00016986,2]
[361751016,1747756234875,-1856.81,0.00016986,2]
[361751017,1747756234884,-430.0,0.00016986,2]
[361751018,1747756234894,-430.0,0.00016986,2]
[361751019,1747756234903,-414.62,0.00016986,2]
[361751020,1747756234913,-430.0,0.00016986,2]
[361751021,1747756234923,-430.0,0.00016986,2]
[361751022,1747756234932,-430.0,0.00016986,2]
[361751023,1747756234942,-1161.66,0.00016986,2]
[361751024,1747756234952,-430.0,0.00016986,2]
[361751025,1747756234961,-863.02,0.00016986,2]
[361751026,1747756234971,-14067.86057922,0.00017,2]
[361751027,1747756234980,-500.0,0.00017013,2]
[361751028,1747756234991,-500.0,0.000171,2]
[361751029,1747756235001,-420.0,0.00017158,2]
[361751030,1747756235010,-500.0,0.000172,2]
[361751031,1747756235020,-3058.76730669,0.0001721,2]
[361751032,1747756235029,-500.0,0.00017238,2]
[361751033,1747756235038,-151.0,0.0001726,2]
[361751034,1747756235048,-430.0,0.0001726,2]
[361751035,1747756235058,-430.0,0.0001726,2]
[361751036,1747756235067,-430.0,0.0001726,2]
[361751037,1747756235077,-523.02925234,0.0001726,2]
[361751038,1747756235087,-258.52,0.0001726,2]
[361751039,1747756235096,-430.0,0.0001726,2]
[361751040,1747756235106,-338.78,0.0001726,2]
[361751041,1747756235116,-670.74,0.0001726,2]
[361751042,1747756235126,-1537.74,0.0001726,2]
[361751043,1747756235136,-1803.68,0.0001726,2]
[361751044,1747756235145,-430.0,0.0001726,2]
[361751045,1747756235155,-1856.81,0.0001726,2]
[361751046,1747756235164,-430.0,0.0001726,2]
[361751047,1747756235174,-430.0,0.0001726,2]
[361751048,1747756235183,-457.34,0.0001726,2]
[361751049,1747756235193,-430.0,0.0001726,2]
[361751050,1747756235203,-430.0,0.0001726,2]
[361751051,1747756235213,-1161.66,0.0001726,2]
[361751052,1747756235222,-390.12,0.0001726,2]
[361751053,1747756235232,-863.02,0.0001726,2]
[361751054,1747756235242,-151.0,0.0001739,2]
[361751055,1747756235251,-500.0,0.0001747,2]
[361751056,1747756235261,-500.0,0.0001747,2]
[361751057,1747756235271,-673.45,0.00017511,3]
[361751058,1747756235281,-3058.76730669,0.00017521,2]
[361751059,1747756235290,-430.0,0.00017534,2]
[361751060,1747756235300,-430.0,0.00017534,2]
[361751061,1747756235309,-430.0,0.00017534,2]
[361751062,1747756235319,-430.0,0.00017534,2]
[361751063,1747756235329,-670.74,0.00017534,2]
[361751064,1747756235338,-1537.74,0.00017534,2]
[361751065,1747756235348,-1803.68,0.00017534,2]
[361751066,1747756235357,-430.0,0.00017534,2]
[361751067,1747756235366,-1856.81,0.00017534,2]
[361751068,1747756235376,-430.0,0.00017534,2]
[361751069,1747756235386,-430.0,0.00017534,2]
[361751070,1747756235395,-430.0,0.00017534,2]
[361751071,1747756235405,-430.0,0.00017534,2]
[361751072,1747756235415,-1161.66,0.00017534,2]
[361751073,1747756235425,-863.02,0.00017534,2]
[361751074,1747756235435,-1000.0,0.00017561,2]
[361751075,1747756235445,-1000.0,0.00017748,2]
[361751076,1747756235455,-168.24526098,0.00017779,2]
[361751077,1747756235465,-160.0,0.00017799,2]
[361751078,1747756235475,-207.80974764,0.00017802,2]
[361751079,1747756235484,-12640.66806714,0.00017802,2]
[361751080,1747756235494,-160.0,0.00017802,2]
[361751081,1747756235507,-160.0,0.00017802,2]
[361751082,1747756235516,-160.0,0.00017802,2]
[361751083,1747756235528,-422.65292303,0.00017802,2]
[361751084,1747756235539,-160.0,0.00017802,2]
[361751085,1747756235548,-212.38718278,0.00017802,2]
[361751086,1747756235558,-160.0,0.00017802,2]
[361751087,1747756235568,-151.0,0.00017808,2]
[361751088,1747756235578,-430.0,0.00017808,2]
[361751089,1747756235588,-430.0,0.00017808,2]
[361751090,1747756235598,-286.17,0.00017808,2]
[361751091,1747756235609,-430.0,0.00017808,2]
[361751092,1747756235618,-670.74,0.00017808,2]
[361751093,1747756235628,-1537.74,0.00017808,2]
[361751094,1747756235638,-1803.68,0.00017808,2]
[361751095,1747756235648,-430.0,0.00017808,2]
[361751096,1747756235657,-1856.81,0.00017808,2]
[361751097,1747756235668,-430.0,0.00017808,2]
[361751098,1747756235678,-430.0,0.00017808,2]
[361751099,1747756235688,-430.0,0.00017808,2]
[361751100,1747756235698,-430.0,0.00017808,2]
[361751101,1747756235708,-1161.66,0.00017808,2]
[361751102,1747756235718,-863.02,0.00017808,2]
[361751103,1747756235727,-3058.76730669,0.00017831,2]
[361751104,1747756235736,-296.75479194,0.0001792,2]
[361751105,1747756235746,-500.0,0.00017933,2]
[361751106,1747756235760,-500.0,0.00017933,2]
[361751107,1747756235770,-500.0,0.00017933,2]
[361751108,1747756235779,-500.0,0.00017935,2]
[361751109,1747756235788,-594.72933782,0.00017972,2]
[361751110,1747756235799,-500.89417392,0.00017972,2]
[361751111,1747756235808,-500.0,0.00017972,2]
[361751112,1747756235818,-161.37527323,0.00017972,2]
[361751113,1747756235827,-1000.0,0.00018018,2]
[361751114,1747756235839,-500.0,0.00018052,2]
[361751115,1747756235848,-430.0,0.00018082,2]
[361751116,1747756235859,-430.0,0.00018082,2]
[361751117,1747756235870,-430.0,0.00018082,2]
[361751118,1747756235880,-670.74,0.00018082,2]
[361751119,1747756235890,-1537.74,0.00018082,2]
[361751120,1747756235901,-1803.68,0.00018082,2]
[361751121,1747756235910,-430.0,0.00018082,2]
[361751122,1747756235921,-1856.81,0.00018082,2]
[361751123,1747756235932,-509.74220496,0.00018082,2]
[361751124,1747756235944,-430.0,0.00018082,2]
[361751125,1747756235953,-430.0,0.00018082,2]
[361751126,1747756235963,-430.0,0.00018082,2]
[361751127,1747756235975,-1161.66,0.00018082,2]
[361751128,1747756235984,-863.02,0.00018082,2]
[361751129,1747756235993,-1543.47124724,0.00018109,2]
[361751130,1747756236005,-3058.76730669,0.00018141,2]
[361751131,1747756236015,-1000.0,0.00018296,2]
[361751132,1747756236025,-500.0,0.00018339,2]
[361751133,1747756236034,-151.0,0.00018343,2]
[361751134,1747756236044,-502.56205692,0.00018347,2]
[361751135,1747756236055,-430.0,0.00018356,2]
[361751136,1747756236066,-430.0,0.00018356,2]
[361751137,1747756236077,-430.0,0.00018356,2]
[361751138,1747756236091,-670.74,0.00018356,2]
[361751139,1747756236100,-1537.74,0.00018356,2]
[361751140,1747756236110,-1803.68,0.00018356,2]
[361751141,1747756236119,-430.0,0.00018356,2]
[361751142,1747756236129,-1856.81,0.00018356,2]
[361751143,1747756236139,-430.0,0.00018356,2]
[361751144,1747756236148,-430.0,0.00018356,2]
[361751145,1747756236158,-430.0,0.00018356,2]
[361751146,1747756236168,-1161.66,0.00018356,2]
[361751147,1747756236178,-863.02,0.00018356,2]
[361751148,1747756236187,-3058.76730669,0.00018452,2]
[361751149,1747756236196,-1000.0,0.00018483,2]
[361751150,1747756236206,-1500.0,0.00018566,2]
[361751151,1747756236215,-707.0,0.00018609,2]
[361751152,1747756236225,-404.0,0.00018609,2]
[361751153,1747756236234,-430.0,0.0001863,2]
[361751154,1747756236244,-430.0,0.0001863,2]
[361751155,1747756236254,-430.0,0.0001863,2]
[361751156,1747756236264,-670.74,0.0001863,2]
[361751157,1747756236274,-1537.74,0.0001863,2]
[361751158,1747756236284,-1803.68,0.0001863,2]
[361751159,1747756236294,-430.0,0.0001863,2]
[361751160,1747756236303,-1856.81,0.0001863,2]
[361751161,1747756236313,-430.0,0.0001863,2]
[361751162,1747756236323,-430.0,0.0001863,2]
[361751163,1747756236333,-430.0,0.0001863,2]
[361751164,1747756236343,-1161.66,0.0001863,2]
[361751165,1747756236352,-863.02,0.0001863,2]
[361751166,1747756236361,-3058.76730669,0.00018762,2]
[361751167,1747756236370,-587.0,0.00018765,2]
[361751168,1747756236380,-198.10192147,0.00018887,2]
[361751169,1747756236391,-151.0,0.00018899,2]
[361751170,1747756236401,-12813.63754295,0.000189,2]
[361751171,1747756236411,-430.0,0.00018904,2]
[361751172,1747756236421,-430.0,0.00018904,2]
[361751173,1747756236430,-430.0,0.00018904,2]
[361751174,1747756236440,-670.74,0.00018904,2]
[361751175,1747756236449,-1537.74,0.00018904,2]
[361751176,1747756236460,-1803.68,0.00018904,2]
[361751177,1747756236470,-434.07,0.00018904,2]
[361751178,1747756236480,-1856.81,0.00018904,2]
[361751179,1747756236490,-430.0,0.00018904,2]
[361751180,1747756236501,-430.0,0.00018904,2]
[361751181,1747756236510,-180.0,0.00018904,2]
[361751182,1747756236520,-1161.66,0.00018904,2]
[361751183,1747756236529,-863.02,0.00018904,2]
[361751184,1747756236539,-1500.0,0.00019031,2]
[361751185,1747756236548,-3058.76730669,0.00019072,2]
[361751186,1747756236558,-2000.0,0.00019114,2]
[361751187,1747756236567,-430.0,0.00019178,2]
[361751188,1747756236578,-430.0,0.00019178,2]
[361751189,1747756236588,-430.0,0.00019178,2]
[361751190,1747756236598,-670.74,0.00019178,2]
[361751191,1747756236607,-1537.74,0.00019178,2]
[361751192,1747756236617,-1803.68,0.00019178,2]
[361751193,1747756236627,-1856.81,0.00019178,2]
[361751194,1747756236637,-430.0,0.00019178,2]
[361751195,1747756236647,-430.0,0.00019178,2]
[361751196,1747756236656,-1161.66,0.00019178,2]
[361751197,1747756236666,-863.02,0.00019178,2]
[361751198,1747756236676,-155.0,0.00019178,2]
[361751199,1747756236685,-529.190574,0.00019178,2]
[361751200,1747756236697,-168.24526098,0.00019219,2]
[361751201,1747756236708,-2200.0,0.00019271,2]
[361751202,1747756236722,-151.0,0.00019329,2]
[361751203,1747756236732,-59035.13096188,0.00019329,2]
[361751209,1747756238459,-300.0,0.00015688,2]
[361751210,1747756238469,-450.0,0.00016438,2]
[361751211,1747756238480,-420.0,0.00017158,2]
[361751212,1747756238490,-587.0,0.00018765,2]
[361751213,1747756238500,-195.33836078,0.00019329,2]
[361751214,1747756238513,-2711.48013248,0.00019329,2]
[361751215,1747756238530,-432.34794334,0.00019329,2]
[361751385,1747756240835,-3080.60000001,0.00019329,2]
[361751386,1747756240850,-942.0476449,0.00019329,2]
[361751387,1747756240862,-1000.012032,0.00019329,2]
[361751389,1747756240873,-936.207534,0.00019329,2]
[361751618,1747756246546,-14242.01506457,0.00019329,2]
[361751619,1747756246555,-3058.76730669,0.00019383,2]
[361751620,1747756246564,-541.74133349,0.00019391,2]
[361751621,1747756246574,-430.0,0.00019452,2]
[361751622,1747756246583,-155.19,0.00019452,2]
[361751623,1747756246594,-430.0,0.00019452,2]
[361751624,1747756246604,-670.74,0.00019452,2]
[361751625,1747756246613,-1537.74,0.00019452,2]
[361751626,1747756246623,-1803.68,0.00019452,2]
[361751627,1747756246633,-1856.81,0.00019452,2]
[361751628,1747756246643,-430.0,0.00019452,2]
[361751629,1747756246654,-430.0,0.00019452,2]
[361751630,1747756246664,-1161.66,0.00019452,2]
[361751631,1747756246674,-863.02,0.00019452,2]
[361751632,1747756246685,-160.55490753,0.00019481,2]
[361751633,1747756246694,-500.0,0.00019579,2]
[361751634,1747756246704,-2500.0,0.00019662,2]
[361751635,1747756246715,-3058.76730669,0.00019693,2]
[361751636,1747756246725,-151.0,0.00019726,2]
[361751637,1747756246734,-430.0,0.00019726,2]
[361751638,1747756246744,-430.0,0.00019726,2]
[361751639,1747756246755,-1537.74,0.00019726,2]
[361751640,1747756246769,-670.74,0.00019726,2]
[361751641,1747756246779,-1803.68,0.00019726,2]
[361751642,1747756246789,-1856.81,0.00019726,2]
[361751643,1747756246798,-430.0,0.00019726,2]
[361751644,1747756246810,-430.0,0.00019726,2]
[361751645,1747756246821,-1161.66,0.00019726,2]
[361751646,1747756246831,-863.02,0.00019726,2]
[361751647,1747756246842,-336.99999901,0.0001998,2]
[361751648,1747756246852,-151.0,0.0002,2]
[361751649,1747756246862,-430.0,0.0002,2]
[361751650,1747756246871,-430.0,0.0002,2]
[361751651,1747756246880,-670.74,0.0002,2]
[361751652,1747756246889,-1537.74,0.0002,2]
[361751653,1747756246899,-1803.68,0.0002,2]
[361751654,1747756246909,-1856.81,0.0002,2]
[361751655,1747756246919,-430.0,0.0002,2]
[361751656,1747756246929,-430.0,0.0002,2]
[361751657,1747756246940,-157.89,0.0002,2]
[361751658,1747756246949,-1161.66,0.0002,2]
[361751659,1747756246960,-863.02,0.0002,2]
[361751660,1747756246969,-3058.76730669,0.00020003,2]
[361751661,1747756246979,-223.047238,0.00020187,2]
[361751662,1747756246988,-430.0,0.00020273,2]
[361751663,1747756246998,-430.0,0.00020273,2]
[361751664,1747756247007,-1537.74,0.00020273,2]
[361751665,1747756247017,-670.74,0.00020273,2]
[361751666,1747756247027,-1803.68,0.00020273,2]
[361751667,1747756247038,-1856.81,0.00020273,2]
[361751668,1747756247047,-430.0,0.00020273,2]
[361751669,1747756247057,-430.0,0.00020273,2]
[361751670,1747756247067,-1161.66,0.00020273,2]
[361751671,1747756247076,-863.02,0.00020273,2]
[361751672,1747756247086,-3058.76730669,0.00020314,3]
[361751673,1747756247096,-1500.0,0.00020445,2]
[361751674,1747756247106,-823.0,0.00020523,2]
[361751675,1747756247115,-823.0,0.00020523,2]
[361751676,1747756247127,-197.49466,0.00020547,2]
[361751677,1747756247136,-309.64,0.00020547,2]
[361751678,1747756247147,-550.0,0.00020547,2]
[361751679,1747756247157,-1537.74,0.00020547,2]
[361751680,1747756247168,-670.74,0.00020547,2]
[361751681,1747756247182,-1803.68,0.00020547,2]
[361751682,1747756247192,-1856.81,0.00020547,2]
[361751683,1747756247202,-259.35,0.00020547,2]
[361751684,1747756247212,-430.0,0.00020547,2]
[361751685,1747756247222,-1161.66,0.00020547,2]
[361751686,1747756247231,-863.02,0.00020547,2]
[361751687,1747756247241,-647.202,0.00020548,2]
[361751688,1747756247252,-3058.76730669,0.00020624,3]
[361751689,1747756247264,-168.24526098,0.0002066,2]
[361751690,1747756247274,-212.38718278,0.000207,3]
[361751691,1747756247284,-1537.74,0.00020821,2]
[361751692,1747756247294,-670.74,0.00020821,2]
[361751693,1747756247304,-1803.68,0.00020821,2]
[361751694,1747756247315,-1856.81,0.00020821,2]
[361751695,1747756247324,-220.61164109,0.00020821,2]
[361751696,1747756247334,-1161.66,0.00020821,2]
[361751697,1747756247343,-863.02,0.00020821,2]
[361751698,1747756247353,-3058.76730669,0.00020934,4]
[361751699,1747756247363,-212.38718278,0.00021,7]
[361751700,1747756247372,-165.26,0.00021,2]
[361751701,1747756247381,-165.26,0.00021,2]
[361751702,1747756247391,-165.278006,0.00021,2]
[361751703,1747756247400,-1537.74,0.00021095,2]
[361751704,1747756247410,-670.74,0.00021095,2]
[361751705,1747756247420,-1803.68,0.00021095,2]
[361751706,1747756247430,-1856.81,0.00021095,2]
[361751707,1747756247439,-1161.66,0.00021095,2]
[361751708,1747756247449,-863.02,0.00021095,2]
[361751709,1747756247459,-200.0,0.0002111,3]
[361751710,1747756247468,-500.0,0.00021118,2]
[361751711,1747756247478,-3058.76730669,0.00021245,4]
[361751712,1747756247488,-1537.74,0.00021369,2]
[361751713,1747756247501,-670.74,0.00021369,2]
[361751714,1747756247513,-1803.68,0.00021369,2]
[361751715,1747756247524,-1856.81,0.00021369,2]
[361751716,1747756247534,-1064.79631925,0.00021369,2]
[361751717,1747756247632,-96.86368075,0.00021369,2]
[361751718,1747756247642,-863.02,0.00021369,2]
[361751719,1747756247651,-1416.15824511,0.00021541,2]
[361751720,1747756346276,-300.0,0.0001671,2]
[361751721,1747756346299,-155.93354669,0.00016711,2]
[361751722,1747756346327,-500.0,0.00016711,2]